{"text_format":"1","workbook":"xlsx","n_sheets":11,"sheets":["Instructions & Notes","FormB_CPP_OA","FormA_CPP_OA_Q1","FormA_CPP_OA_Q2","FormA_CPP_OA_Q3","FormA_CPP_OA_Q4","Supporting Sheet","Annexure-1","Annexure-2","StateUTs","Targets"],"not_rendered":{"charts":0,"images":4,"macros":1,"external_links":66,"defined_names":2833,"comments":0,"pivot_tables":0},"unopened":[],"bounds":{"document_bytes":16777216,"sheet_cells":100000,"rows_first":2000,"rows_last":500,"rows_between":2000,"halvings":0,"cell_chars":16384,"cell_head_chars":4096},"cells_cut":0,"cells_raw":0,"read":"whole","date_system":"1900"}

{"sheet":"Instructions & Notes","index":0,"n_rows":11,"n_cols":3,"rows_kept":11,"cut":false,"hidden":false,"merged":[[1,1,1,2],[2,1,2,2]]}
[]
[null,"RCO Compliance Data reporting by DCs with CPP & Open Access "]
[null,"Important Instructions and Notes:"]
[null,1,"This excel workbook contains the following worksheets:\n●  Form B (Worksheet name \"FormB_CPP_OA\") - The Annual Energy Consumption Details will appear in this worksheet\n●  Form A (Four Worksheets named \"FormA_CPP_OA_Q1\" to \"FormA_CPP_OA_Q4\") - The Quarterly Energy Consumption Details are to be entered in this sheet\n●  Annexure-1 (Worksheet name \"Annexure-1\") - This sheet is to be used only in case of co-firing of renewable fuels in CPPs or as part of other Industrial Processes. The sheet estimates the RE generated from such combustion of renewable fuels.\n●  Annexure-2 (Worksheet name \"Annexure-2\") - This sheet is to used only in case of consumption of Green Hydrogen. The sheet estimates the electrical energy equivalent of Green Hydrogen consumed."]
[null,2,"Name, Address and other basic details of Obligated Designated Consumers to be entered in Form B (in Worksheet named \"FormB_CPP_OA\"). These details will be populated automatically in other sheets based on input in Form B"]
[null,3,"Renewable Consumption Obligations (%Target) specified by MoP will be auto-populated in the Form B and all Form As, once the Target Year (i.e. the financial year for which RCO Compliance is being evaluated) and Location (State) of the Designated Consumer is entered in Form B (in Worksheet named \"FormB_CPP_OA\")."]
[null,4,"Electrical Energy Consumption is to be entered in Million Units (MU) throughout all worksheets in this workbook. "]
[null,5,"Total Energy Consumption and Non-fossil Energy Consumption details to be entered in Form A for each of the respective Quarters (in Worksheets named \"FormA_CPP_OA_Q1\" to \"FormA_CPP_OA_Q4\"). Annual details will be populated from these sheets into Form B"]
[null,6,"Please refer carefully to the Legend and Notes provided on each worksheet while filling in the details"]
[null,7,"In case of co-firing of Renewable Fuels in Captive Power Plants, the quarter wise details are to be filled in the Worksheet named \"Annexure-1\". Calculations will be done in the worksheet and results will be populated in Form A for the respective quarter"]
[null,8,"In case of consumption of Green Hydrogen, the quarter wise details are to be filled in the Worksheet named \"Annexure-2\". Calculations will be done in the worksheet and results will be populated in Form A for the respective quarter"]

{"sheet":"FormB_CPP_OA","index":1,"n_rows":55,"n_cols":5,"rows_kept":55,"cut":false,"hidden":false,"merged":[[16,1,16,4],[1,1,1,4],[10,1,10,4],[7,2,7,4],[8,2,8,4],[2,2,2,4],[3,2,3,4],[4,2,4,4],[5,2,5,4],[6,2,6,4],[44,1,44,4],[22,1,22,4],[45,1,45,4],[46,1,46,4],[49,1,49,4],[47,1,47,4],[34,1,34,4],[43,1,43,4]]}
[]
[null,"ANNUAL RCO COMPLIANCE DECLARATION FORM (FORM B) - DCs with CPP & Open Access"]
[null,"Name of Obligated Designated Consumer"]
[null,"Address"]
[null,"Registration No. of Obligated Designated Consumer"]
[null,"Type of obligation(s) of Obligated Designated Consumer#"]
[null,"Target Year FY (__-__)"]
[null,"Location (State)"]
[null,"State Category",{"$f":"IF(ISBLANK(C8),\"\",VLOOKUP(C8,StateUTs!$B$2:$C$37,2))","v":""}]
[null,"Particulars","Nomenclature","Unit","Total Energy"]
[null,"Part A! – Gross Total Energy Consumption (Fossil based + Non-fossil based)"]
[null,"Gross Total Energy Consumption for Quarter 1","A","MU",{"$f":"FormA_CPP_OA_Q1!E35","v":0}]
[null,"Gross Total Energy Consumption for Quarter 2","B","MU",{"$f":"FormA_CPP_OA_Q2!E35","v":0}]
[null,"Gross Total Energy Consumption for Quarter 3","C","MU",{"$f":"FormA_CPP_OA_Q3!E35","v":0}]
[null,"Gross Total Energy Consumption for Quarter 4","D","MU",{"$f":"FormA_CPP_OA_Q4!E35","v":0}]
[null,"Gross Total Energy Consumption for Target Financial Year","E = A+B+C+D","MU",{"$f":"SUM(E12:E15)","v":0}]
[null,"Part B! – Gross Non-fossil based Energy Consumption "]
[null,"Gross Non-fossil Energy Consumption for Quarter 1","F","MU",{"$f":"FormA_CPP_OA_Q1!E67","v":0}]
[null,"Gross Non-fossil Energy Consumption for Quarter 2","G","MU",{"$f":"FormA_CPP_OA_Q2!E67","v":0}]
[null,"Gross Non-fossil Energy Consumption for Quarter 3","H","MU",{"$f":"FormA_CPP_OA_Q3!E67","v":0}]
[null,"Gross Non-fossil Energy Consumption for Quarter 4","I","MU",{"$f":"FormA_CPP_OA_Q4!E67","v":0}]
[null,"Gross Non-fossil Energy Consumption for Target Financial Year","J = F+G+H+I","MU",{"$f":"SUM(E18:E21)","v":0}]
[null,"Part C! – Renewable Energy Certificates (RECs)"]
[null,"Renewable Energy Certificates (RECs) - During Assessment Year Window !!","T'=U'+V'","MU",{"$f":"E26+E28","v":0}]
[null,"Number of RECs Purchased",null,"No. of Certificates"]
[null,"REC Purchase","U'","MU",{"$f":"E25/1000","v":0}]
[null,"Number of RECs Self-Retained",null,"No. of Certificates"]
[null,"REC Self-retaintion","V'","MU",{"$f":"E27/1000","v":0}]
[null,"Renewable Energy Certificates (RECs) - During Target Year !","R=T1+T2+T3+T4","MU",{"$f":"SUM(E30:E33)","v":0}]
[null,"Compliance through REC for Quarter 1","T1","MU",{"$f":"FormA_CPP_OA_Q1!E68","v":0}]
[null,"Compliance through REC for Quarter 2","T2","MU",{"$f":"FormA_CPP_OA_Q2!E68","v":0}]
[null,"Compliance through REC for Quarter 3","T3","MU",{"$f":"FormA_CPP_OA_Q3!E68","v":0}]
[null,"Compliance through REC for Quarter 4","T4","MU",{"$f":"FormA_CPP_OA_Q4!E68","v":0}]
[null,"Total Compliance through RECs","N=T'+R","MU",{"$f":"E24+E29","v":0}]
[null,"Part D – Compliance to Renewable Consumption Obligations "]
[null,"Renewable Consumption Obligations Target specified by MoP","K","%",{"$f":"IF(OR(ISBLANK(C8),ISBLANK(C7)), 0,INDEX(Targets!H3:H20,MATCH(1,(Targets!B3:B20=C9)*(Targets!C3:C20=C7),0)))","v":0}]
[null,"MoP Renewable Consumption Obligations Target","L=E*K","MU",{"$f":"$E$16*$E$36","v":0}]
[null,"Annual Compliance","M=J+N","MU",{"$f":"E22+E34","v":0}]
[null,"Annual Compliance (%)","P = M/E","%",{"$f":"IF(E16=0,0,E38/E16)","v":0}]
[null,"Surplus / Deficit ##","Q=M-L","MU",{"$f":"E38-E37","v":0}]
[]
[]
[null,"Legend","Data Entry Not Allowed","Data to be Entered by User","Calculated Data"]
[null,"Notes: "]
[null,"# Mention each of the type of obligations of the obligated Designated Consumer i.e. Open Access Consumer and/or Captive Power Consumer"]
[null,"! Quarterly values are automatically be brought over from respective Form A as duly completed by the user."]
[null,"!! Only enter RECs purchased or self-retained during the additional Compliance Window provided during the Assessment Year. For RECs purchased or self-retained during the Target Year, please make entries in the respective quarters (Q1 to Q4) of the Target Year. \n(Target Yr. = FY for which RCO compliance is being assessed, Assessment Yr. = FY immediately following the Target Yr.)"]
[null,"## RCO Compliance (Surplus / Deficit): Surplus is positive and Deficit is negative number "]
[]
[null,"Undertaking\nI/We undertake that the information supplied in this Renewable Consumption Obligations Compliance Declaration Form For Obligated Designated Consumers is accurate to the best of my knowledge and if any of the information supplied is found to be incorrect and such information results into loss to the Central Government or any of the authority under them or any other person affected, I/we undertake to indemnify such loss.\nI /We agree to extend necessary assistance in case of any enquiry to be made in the matter."]
[null,"For Designated Consumer",null,null,"For AEA / ACV Agency"]
[]
[]
[]
[null,"Signature and Seal of Energy Manager / Plant Head",null,null,"Signature and Seal of AEA / ACV"]

{"sheet":"FormA_CPP_OA_Q1","index":2,"n_rows":104,"n_cols":5,"rows_kept":104,"cut":false,"hidden":false,"merged":[[98,1,98,4],[72,1,72,4],[1,1,1,4],[2,2,2,4],[3,2,3,4],[4,2,4,4],[5,2,5,4],[6,2,6,4],[8,2,8,4],[9,2,9,4],[10,1,10,4],[35,1,35,4],[7,2,7,4],[97,1,97,4],[90,1,90,4],[96,1,96,4],[95,1,95,4],[82,1,82,4],[85,1,85,4],[81,1,81,4],[87,1,87,4],[89,1,89,4],[88,1,88,4],[91,1,91,4],[83,1,83,4],[84,1,84,4],[92,1,92,4],[93,1,93,4],[94,1,94,4],[86,1,86,4]]}
[]
[null,"Quarterly RCO Compliance Data reporting (Form A) - DCs with CPP & Open Access "]
[null,"Name of Obligated Designated Consumer",{"$f":"FormB_CPP_OA!C3","v":0}]
[null,"Address",{"$f":"FormB_CPP_OA!C4","v":0}]
[null,"Registration No. of Obligated Designated Consumer",{"$f":"FormB_CPP_OA!C5","v":0}]
[null,"Type of obligation(s) of Obligated Designated Consumer#",{"$f":"FormB_CPP_OA!C6","v":0}]
[null,"Target Year FY (__-__)",{"$f":"FormB_CPP_OA!C7","v":0}]
[null,"Quarter","Quarter 1 (01 April to 30 June)"]
[null,"Location - State",{"$f":"FormB_CPP_OA!C8","v":0}]
[null,"State Category",{"$f":"FormB_CPP_OA!C9","v":""}]
[null,"Part A – Gross Total Energy Consumption (Fossil based + Non-fossil based)"]
[null,"Particulars ","Nomenclature","Unit","Total Energy"]
[null,"Own Generation, Net after deducting APC*** (Sub-Total)","AT=A+A!-A**+B+T","MU",{"$f":"E14+E15-E16+E17+E18","v":0}]
[null,"Total Fossil based energy generation *","A","MU"]
[null,"Ex-Bus Energy generation from Fossil based Auxiliary Firing in WHR System !!","A!","MU",{"$f":"'Annexure-1'!F46","v":0}]
[null,"Fossil based energy from WHR **","A**","MU"]
[null,"Nuclear energy","B","MU"]
[null,"Total RE ","T","MU",{"$f":"E47","v":0}]
[null,"Energy Purchase (Sub-Total)","CT=C+E+D+A'","MU",{"$f":"SUM(E20:E23)","v":0}]
[null,"Fossil based energy (PPA/Bilateral)","C","MU"]
[null,"Nuclear energy (PPA/Bilateral)","E","MU"]
[null,"Purchase from Power exchanges (TAM/DAM/RTM)","D","MU"]
[null,"Total RE ","A'","MU",{"$f":"E53","v":0}]
[null,"Energy Sales (Sub-Total)","FT=F+H+G+H*+I'","MU",{"$f":"SUM(E25:E29)","v":0}]
[null,"Fossil based energy sales to Power Exchange ","F","MU"]
[null,"Nuclear energy sales to Power Exchange ","H","MU"]
[null,"Other sales of Fossil based energy (PPA/Bilateral)","G","MU"]
[null,"Other sales of Nuclear energy (PPA/Bilateral)","H*","MU"]
[null,"Total RE ","I'","MU",{"$f":"E57","v":0}]
[null,"Net Fossil Energy drawn from Storage (Sub-Total) !!!","IT=(I-J)*(1-ITL)","MU",{"$f":"(E31-E32)*(1-E33)","v":0}]
[null,"Total Energy drawn from Storage (ESS)","I","MU"]
[null,"Total Energy (Fossil + Nuclear) stored into Storage (ESS)","J","MU"]
[null,"Losses in Storage (ESS)","ITL","%"]
[null,"Net RE drawn from Storage ( Sub-Total)","Q'","MU",{"$f":"E61","v":0}]
[null,"Gross Total Energy Consumption on which Renewable Consumption Obligations is applicable ","K=AT+CT-FT+IT+Q'+W'+X'","MU",{"$f":"E13+E19-E24+E30+E34+E65+E66","v":0}]
[null,"Part B – Gross Non-fossil based Energy Consumption "]
[null,"Particulars","Nomenclature","Unit","Total Quantity"]
[null,"Green Hydrogen produced","L","Tons"]
[null,"Green Hydrogen purchased","M","Tons"]
[null,"Sale of Green Hydrogen","N","Tons"]
[null,"Green Hydrogen consumed","O=L+M-N","Tons",{"$f":"E38+E39-E40","v":0}]
[null,"Green Ammonia produced","P","Tons"]
[null,"Green Ammonia purchased","Q","Tons"]
[null,"Sale of Green Ammonia","R","Tons"]
[null,"Green Ammonia consumed","S=P+Q-R","Tons",{"$f":"E42+E43-E44","v":0}]
[null,"Particulars","Nomenclature","Unit","Total Energy"]
[null,"RE Own Generation ⴕ ⴕ (Sub-Total)","T=U+W+Er(ex-bus)","MU",{"$f":"E48+E49+E52","v":0}]
[null,"Wind, Hydro and Other Renewable Energy (1)","U","MU"]
[null,"Distributed Renewable Energy (DRE) (2)","W=X+Y","MU",{"$f":"E50+E51","v":0}]
[null,"DRE metered (4)","X","MU"]
[null,"DRE unmetered (3)","Y","MU"]
[null,"Ex-bus electrical energy generated by combustion of renewable fuels ⴕ","Er(ex-bus)","MU",{"$f":"'Annexure-1'!F38","v":0}]
[null,"RE Purchase ⴕ ⴕ (Sub-Total)","A'=B'+D'+H'","MU",{"$f":"E54+E55+E56","v":0}]
[null,"Wind, Hydro and Other Renewable Energy (1)","B'","MU"]
[null,"Distributed Renewable Energy (DRE) (2)                                                                   DRE metered (5)","D'","MU"]
[null,"Green Power Market procurement (GTAM, GDAM)","H'","MU"]
[null,"RE Sales ⴕ ⴕ (Sub-Total)","I'=J'+L'+P'","MU",{"$f":"E58+E59+E60","v":0}]
[null,"Wind, Hydro and Other Renewable Energy (1)","J'","MU"]
[null,"Distributed Renewable Energy (DRE) (2)                                                                    DRE metered(6)","L'","MU"]
[null,"RE Sale to Green Power Market (GTAM, GDAM)","P'","MU"]
[null,"Net RE drawn from Storage (Sub-Total) !!!","Q'=(R'-S')*(1-QL)","MU",{"$f":"(E62-E63)*(1-E64)","v":0}]
[null,"Total Energy drawn from Storage (ESS)","R'","MU"]
[null,"Total RE Stored into Storage (ESS)","S'","MU"]
[null,"Losses in Storage (ESS)","QL","%"]
[null,"Energy Equivalent of GH2 Consumed ##","W'","MU",{"$f":"'Annexure-2'!D9","v":0}]
[null,"Energy Equivalent of Green Ammonia Consumed ##","X'","MU"]
[null,"Gross Non-fossil based Energy Consumption ","Y'=T+A'-I'+Q'+W'+X'","MU",{"$f":"E47+E53-E57+E61+E65+E66","v":0}]
[null,"Renewable Energy Certificates (RECs) ⴕⴕⴕ","T'=U'+V'","MU",{"$f":"E70+E72","v":0}]
[null,"Number of RECs Purchased",null,"No. of Certificates"]
[null,"REC Purchase","U'","MU",{"$f":"E69/1000","v":0}]
[null,"Number of RECs Self-Retained",null,"No. of Certificates"]
[null,"REC Self-retaintion","V'","MU",{"$f":"E71/1000","v":0}]
[null,"Part C – RENEWABLE CONSUMPTION OBLIGATIONS  Compliance "]
[null,"Particular","Nomenclature","Unit","Values"]
[null,"RCO (%) specified by MoP","Z'","%",{"$f":"FormB_CPP_OA!E36","v":0}]
[null,"MoP Renewable Consumption Obligation Target","A''=K*Z'","MU",{"$f":"E35*E75","v":0}]
[null,"Quarterly Compliance","D''=Y'+T'","MU",{"$f":"E67+E68","v":0}]
[null,"Quarterly Compliance (%)","B''=D''/K","%",{"$f":"IF(E35=0,0,E77/E35)","v":0}]
[null,"Surplus / Deficit #","C''=D''-A''","MU",{"$f":"E77-E76","v":0}]
[]
[null,"Legend","Data Entry Not Allowed","Data to be Entered by User","Calculated Data"]
[null,"Notes: "]
[null,"*** All Energy Generation should be reported as Net Generation after deduction of auxilliary power consumption in the respective power plant. This includes Total Fossil based generation, generation from WHR, as well as Nuclear and RE generation. AEA / ACV Agency to review the auxilliary power consumption records and confirm prior to endorsing the Form A and Form B. Details of deduction of APC to be appended as supporting documents."]
[null,"* This is the total fossil based energy generation including generation from WHR. "]
[null,"** This is all Non-RE based energy generated from WHR, which is exempted from RCO obligation. This is hence reported separately, and substracted from total fossil based energy generation."]
[null,"!! This value is calculated from the inputs provided in the relevant section of the Worksheet named \"Annexure-1\" and is only applicable in case of auxiliary firing of fossil based fuels in the waste heat recovery boiler (WHRB). Relevant values may be input in the fields provided for the same in \"Annexure-1\" if  auxiliary firing of fosil fuels is applicable."]
[null,"!!! All power stored into Storage (ESS) shall be metered or other wise established (e.g. based on purchase records) separately for fossil based including nuclear power, and separately for RE power. The power drawn from ESS for the quarter shall also be distributed in the same ratio of (Fossil + Nuclear) to RE, as the power stored into ESS for the quarter. All necessary details to establish net power drawn from ESS for (Fossil + Nuclear) and RE shall then be entered separately into the respective fields provided."]
[null,"ⴕ ⴕ Definition of RE Sources (Wind, Hydro, DRE and Others) shall be as per MoP Trajectory notification S.O. 4617(E) dtd. 20 October 2023 or as per latest amendments from time to time. Bifurcation among RE Sources (Wind, Hydro, DRE and Others) is not required for RCO compliance."]
[null,"ⴕ This value is calculated from the inputs provided in the Worksheet named \"Annexure-1\" and is only applicable in case of electricity generation by combustion / co-firing of Renewable Fuels. Do NOT enter any values in \"Annexure-1\" if combustion / co-firing of Renewable Fuels is not applicable."]
[null,"(1) This includes Wind, Hydro, and Other Renewable Energy components. i.e. It effectively includes all renewable energy other than DRE which is specified in Note 4  as per MoP Trajectory notification S.O. 4617(E) dtd. 20 October 2023 or as per latest amendments from time to time."]
[null,"(2) The distributed renewable energy (DRE) component must be sourced exclusively from renewable energy projects that are under 10 MW in capacity. This includes all types of solar installations, such as net metering, gross metering, virtual net metering, group net metering, behind-the-meter installations, and any other configurations approved by the Central Government.\n\nCompliance with distributed renewable energy requirements will generally be measured in terms of energy (kilowatt-hour units).\n\nIf the designated consumer cannot provide generation data for distributed renewable energy installations, the reported capacity will be converted into energy generation using a multiplier of 3.5 units per kilowatt per day (kWh/kW/day).\n\nPurchase or Sale of unmetered energy (DRE) is not the norm and is not encouraged, even under exceptional circumstances. Accordingly, the provision for recording unmetered DRE is only made under the head of 'Own RE Generation' and not under the heads of 'RE Purchase' and 'RE Sales'."]
[null,"(3) The number of days in the respective quarter or year that the DRE installation has been in operation shall be certified by the obligated DC and/or the AEA / ACV Agency in case of unmetered DRE."]
[null,"(4) Please report the DRE generation based on meter reading at the generator meter. In case a direct meter reading of the total generated power from DRE source is not available, then provision for such metering should be made within the next six months. Provisionally, till the metering arrangement is put in place, energy generation may be reported as unmetered DRE generation using the multiplier mentioned above (5 kWh/kW/day)."]
[null,"(5) In case separate purchase records are available for DRE purchased, say through bilateral PPA, then the same may be recorded here. Else RE purchased may be entered under 'Wind, Hydro and Other RE'"]
[null,"(6) DRE injected to Grid will be treated and reported as RE Sales to Grid in case of DRE connected in 'Net Metering' and 'Gross Metering' configurations and its variants. In case of gross metering, entire DRE generation shall be deemed to be injected to Grid"]
[null,"ⴕ ⴕ ⴕ Make an entry here only for the RECs purchased or self-retained duirng the first quarter (Q1 - 01 April to 30 June) of the Target Year"]
[null,"## Energy equivalent of GH2 and Green Ammonia Consumed should be evaluated as per Green Energy Open Access Rules with latest amendments as applicable. Details for GH2 to be entered in worksheet named Annexure 2, whereas energy consumption for Green Amonia based on Energy equivalent of one tonne of Green Ammonia or based on meter reading shall be entered in this worksheet (cell E64). Supporting calculations for the same to be appended."]
[null,"# RCO Compliance (Surplus / Deficit): Surplus is positive and Deficit is negative number"]
[null,"Undertaking\nI/We undertake that the information supplied in this Renewable Consumption Obligations Compliance Declaration Form For Obligated Designated Consumers is accurate to the best of my knowledge and if any of the information supplied is found to be incorrect and such information results into loss to the Central Government or any of the authority under them or any other person affected, I/we undertake to indemnify such loss.\nI /We agree to extend necessary assistance in case of any enquiry to be made in the matter."]
[null,"For Designated Consumer",null,null,"For AEA / ACV Agency"]
[]
[]
[]
[null,"Signature and Seal of Energy Manager / Plant Head",null,null,"Signature and Seal of AEA / ACV"]

{"sheet":"FormA_CPP_OA_Q2","index":3,"n_rows":105,"n_cols":5,"rows_kept":105,"cut":false,"hidden":false,"merged":[[97,1,97,4],[99,1,99,4],[96,1,96,4],[94,1,94,4],[90,1,90,4],[89,1,89,4],[92,1,92,4],[95,1,95,4],[81,1,81,4],[83,1,83,4],[84,1,84,4],[87,1,87,4],[93,1,93,4],[91,1,91,4],[88,1,88,4],[82,1,82,4],[85,1,85,4],[86,1,86,4],[72,1,72,4],[1,1,1,4],[2,2,2,4],[3,2,3,4],[4,2,4,4],[5,2,5,4],[6,2,6,4],[10,1,10,4],[35,1,35,4],[7,2,7,4],[8,2,8,4],[9,2,9,4]]}
[]
[null,"Quarterly RCO Compliance Data reporting (Form A) - DCs with CPP & Open Access "]
[null,"Name of Obligated Designated Consumer",{"$f":"FormB_CPP_OA!C3","v":0}]
[null,"Address",{"$f":"FormB_CPP_OA!C4","v":0}]
[null,"Registration No. of Obligated Designated Consumer",{"$f":"FormB_CPP_OA!C5","v":0}]
[null,"Type of obligation(s) of Obligated Designated Consumer#",{"$f":"FormB_CPP_OA!C6","v":0}]
[null,"Target Year FY (__-__)",{"$f":"FormB_CPP_OA!C7","v":0}]
[null,"Quarter","Quarter 2 (01 July to 30 September)"]
[null,"Location - State",{"$f":"FormB_CPP_OA!C8","v":0}]
[null,"State Category",{"$f":"FormB_CPP_OA!C9","v":""}]
[null,"Part A – Gross Total Energy Consumption (Fossil based + Non-fossil based)"]
[null,"Particulars ","Nomenclature","Unit","Total Energy"]
[null,"Own Generation, Net after deducting APC*** (Sub-Total)","AT=A+A!-A**+B+T","MU",{"$f":"E14+E15-E16+E17+E18","v":0}]
[null,"Total Fossil based energy generation *","A","MU"]
[null,"Ex-Bus Energy generation from Fossil based Auxiliary Firing in WHR System !!","A!","MU",{"$f":"'Annexure-1'!G46","v":0}]
[null,"Fossil based energy from WHR **","A**","MU"]
[null,"Nuclear energy","B","MU"]
[null,"Total RE ","T","MU",{"$f":"E47","v":0}]
[null,"Energy Purchase (Sub-Total)","CT=C+E+D+A'","MU",{"$f":"SUM(E20:E23)","v":0}]
[null,"Fossil based energy (PPA/Bilateral)","C","MU"]
[null,"Nuclear energy (PPA/Bilateral)","E","MU"]
[null,"Purchase from Power exchanges (TAM/DAM/RTM)","D","MU"]
[null,"Total RE ","A'","MU",{"$f":"E53","v":0}]
[null,"Energy Sales (Sub-Total)","FT=F+H+G+H*+I'","MU",{"$f":"SUM(E25:E29)","v":0}]
[null,"Fossil based energy sales to Power Exchange ","F","MU"]
[null,"Nuclear energy sales to Power Exchange ","H","MU"]
[null,"Other sales of Fossil based energy (PPA/Bilateral)","G","MU"]
[null,"Other sales of Nuclear energy (PPA/Bilateral)","H*","MU"]
[null,"Total RE ","I'","MU",{"$f":"E57","v":0}]
[null,"Net Fossil Energy drawn from Storage (Sub-Total) !!!","IT=(I-J)*(1-ITL)","MU",{"$f":"(E31-E32)*(1-E33)","v":0}]
[null,"Total Energy drawn from Storage (ESS)","I","MU"]
[null,"Total Energy (Fossil + Nuclear) stored into Storage (ESS)","J","MU"]
[null,"Losses in Storage (ESS)","ITL","%"]
[null,"Net RE drawn from Storage ( Sub-Total)","Q'","MU",{"$f":"E61","v":0}]
[null,"Gross Total Energy Consumption on which Renewable Consumption Obligations is applicable ","K=AT+CT-FT+IT+Q'+W'+X'","MU",{"$f":"E13+E19-E24+E30+E34+E65+E66","v":0}]
[null,"Part B – Gross Non-fossil based Energy Consumption "]
[null,"Particulars","Nomenclature","Unit","Total Quantity"]
[null,"Green Hydrogen produced","L","Tons"]
[null,"Green Hydrogen purchased","M","Tons"]
[null,"Sale of Green Hydrogen","N","Tons"]
[null,"Green Hydrogen consumed","O=L+M-N","Tons",{"$f":"E38+E39-E40","v":0}]
[null,"Green Ammonia produced","P","Tons"]
[null,"Green Ammonia purchased","Q","Tons"]
[null,"Sale of Green Ammonia","R","Tons"]
[null,"Green Ammonia consumed","S=P+Q-R","Tons",{"$f":"E42+E43-E44","v":0}]
[null,"Particulars","Nomenclature","Unit","Total Energy"]
[null,"RE Own Generation ⴕ ⴕ (Sub-Total)","T=U+W+Er(ex-bus)","MU",{"$f":"E48+E49+E52","v":0}]
[null,"Wind, Hydro and Other Renewable Energy (1)","U","MU"]
[null,"Distributed Renewable Energy (DRE) (2)","W=X+Y","MU",{"$f":"E50+E51","v":0}]
[null,"DRE metered","X","MU"]
[null,"DRE unmetered (3)","Y","MU"]
[null,"Ex-bus electrical energy generated by combustion of renewable fuels ⴕ","Er(ex-bus)","MU",{"$f":"'Annexure-1'!G38","v":0}]
[null,"RE Purchase ⴕ ⴕ (Sub-Total)","A'=B'+D'+H'","MU",{"$f":"E54+E55+E56","v":0}]
[null,"Wind, Hydro and Other Renewable Energy (1)","B'","MU"]
[null,"Distributed Renewable Energy (DRE) (2)                                                  DRE metered (5)","D'","MU"]
[null,"Green Power Market procurement (GTAM, GDAM)","H'","MU"]
[null,"RE Sales ⴕ ⴕ (Sub-Total)","I'=J'+L'+P'","MU",{"$f":"E58+E59+E60","v":0}]
[null,"Wind, Hydro and Other Renewable Energy (1)","J'","MU"]
[null,"Distributed Renewable Energy (DRE) (2)                                                  DRE metered (6)","L'","MU"]
[null,"RE Sale to Green Power Market (GTAM, GDAM)","P'","MU"]
[null,"Net RE drawn from Storage (Sub-Total) !!!","Q'=(R'-S')*(1-QL)","MU",{"$f":"(E62-E63)*(1-E64)","v":0}]
[null,"Total Energy drawn from Storage (ESS)","R'","MU"]
[null,"Total RE Stored into Storage (ESS)","S'","MU"]
[null,"Losses in Storage (ESS)","QL","%"]
[null,"Energy Equivalent of GH2 Consumed ##","W'","MU",{"$f":"'Annexure-2'!E9","v":0}]
[null,"Energy Equivalent of Green Ammonia Consumed ##","X'","MU"]
[null,"Gross Non-fossil based Energy Consumption ","Y'=T+A'-I'+Q'+W'+X'","MU",{"$f":"E47+E53-E57+E61+E65+E66","v":0}]
[null,"Renewable Energy Certificates (RECs) ⴕⴕⴕ","T'=U'+V'","MU",{"$f":"E70+E72","v":0}]
[null,"Number of RECs Purchased",null,"No. of Certificates"]
[null,"REC Purchase","U'","MU",{"$f":"E69/1000","v":0}]
[null,"Number of RECs Self-Retained",null,"No. of Certificates"]
[null,"REC Self-retaintion","V'","MU",{"$f":"E71/1000","v":0}]
[null,"Part C – RENEWABLE CONSUMPTION OBLIGATIONS  Compliance "]
[null,"Particular","Nomenclature","Unit","Values"]
[null,"RCO (%) specified by MoP","Z'","%",{"$f":"FormB_CPP_OA!E36","v":0}]
[null,"MoP Renewable Consumption Obligation Target","A''=K*Z'","MU",{"$f":"E35*E75","v":0}]
[null,"Quarterly Compliance","D''=Y'+T'","MU",{"$f":"E67+E68","v":0}]
[null,"Quarterly Compliance (%)","B''=D''/K","%",{"$f":"IF(E35=0,0,E77/E35)","v":0}]
[null,"Surplus / Deficit #","C''=D''-A''","MU",{"$f":"E77-E76","v":0}]
[]
[null,"Legend","Data Entry Not Allowed","Data to be Entered by User","Calculated Data"]
[null,"Notes: "]
[null,"*** All Energy Generation should be reported as Net Generation after deduction of auxilliary power consumption in the respective power plant. This includes Total Fossil based generation, generation from WHR, as well as Nuclear and RE generation. AEA / ACV Agency to review the auxilliary power consumption records and confirm prior to endorsing the Form A and Form B. Details of deduction of APC to be appended as supporting documents."]
[null,"* This is the total fossil based energy generation including generation from WHR. "]
[null,"** This is all Non-RE based energy generated from WHR, which is exempted from RCO obligation. This is hence reported separately, and substracted from total fossil based energy generation."]
[null,"!! This value is calculated from the inputs provided in the relevant section of the Worksheet named \"Annexure-1\" and is only applicable in case of auxiliary firing of fossil based fuels in the waste heat recovery boiler (WHRB). Relevant values may be input in the fields provided for the same in \"Annexure-1\" if  auxiliary firing of fosil fuels is applicable."]
[null,"!!! All power stored into Storage (ESS) shall be metered or other wise established (e.g. based on purchase records) separately for fossil based including nuclear power, and separately for RE power. The power drawn from ESS for the quarter shall also be distributed in the same ratio of (Fossil + Nuclear) to RE, as the power stored into ESS for the quarter. All necessary details to establish net power drawn from ESS for (Fossil + Nuclear) and RE shall then be entered separately into the respective fields provided."]
[null,"ⴕ ⴕ Definition of RE Sources (Wind, Hydro, DRE and Others) shall be as per MoP Trajectory notification S.O. 4617(E) dtd. 20 October 2023 or as per latest amendments from time to time. Bifurcation among RE Sources (Wind, Hydro, DRE and Others) is not required for RCO compliance."]
[null,"ⴕ This value is calculated from the inputs provided in the Worksheet named \"Annexure-1\" and is only applicable in case of electricity generation by combustion / co-firing of Renewable Fuels. Do NOT enter any values in \"Annexure-1\" if combustion / co-firing of Renewable Fuels is not applicable."]
[null,"(1) This includes Wind, Hydro, and Other Renewable Energy components. i.e. It effectively includes all renewable energy other than DRE which is specified in Note 4  as per MoP Trajectory notification S.O. 4617(E) dtd. 20 October 2023 or as per latest amendments from time to time."]
[null,"(2) The distributed renewable energy (DRE) component must be sourced exclusively from renewable energy projects that are under 10 MW in capacity. This includes all types of solar installations, such as net metering, gross metering, virtual net metering, group net metering, behind-the-meter installations, and any other configurations approved by the Central Government.\n\nCompliance with distributed renewable energy requirements will generally be measured in terms of energy (kilowatt-hour units).\n\nIf the designated consumer cannot provide generation data for distributed renewable energy installations, the reported capacity will be converted into energy generation using a multiplier of 3.5 units per kilowatt per day (kWh/kW/day).\n\nPurchase or Sale of unmetered energy (DRE) is not the norm and is not encouraged, even under execptional circumstances. Accordingly, the provision for recording unmetered DRE is only made under the head of 'Own RE Generation' and not under the heads of 'RE Purchase' and 'RE Sales'."]
[null,"(3) The number of days in the respective quarter or year that the DRE installation has been in operation shall be certified by the obligated DC and/or the AEA / ACV Agency in case of unmetered DRE."]
[null,"(4) Please report the DRE generation based on meter reading at the generator meter. In case a direct meter reading of the total generated power from DRE source is not available, then provision for such metering should be made within the next six months. Provisionally, till the metering arrangement is put in place, energy generation may be reported as unmetered DRE generation using the multiplier mentioned above (5 kWh/kW/day)."]
[null,"(5) In case separate purchase records are available for DRE purchased, say through bilateral PPA, then the same may be recorded here. Else RE purcahsed may be entered under 'Wind, Hydro and Other RE'"]
[null,"(6) DRE injected to Grid will be treated and reported as RE Sales to Grid in case of DRE connected in 'Net Metering' and 'Gross Metering' configurations and its variants. In case of gross metering, entire DRE generation shall be deemed to be injected to Grid"]
[null,"ⴕ ⴕ ⴕ Make an entry here only for the RECs purchased or self-retained duirng the first quarter (Q1 - 01 April to 30 June) of the Target Year"]
[null,"## Energy equivalent of GH2 and Green Ammonia Consumed should be evaluated as per Green Energy Open Access Rules with latest amendments as applicable. Details for GH2 to be entered in worksheet named Annexure 2, whereas energy consumption for Green Amonia based on Energy equivalent of one tonne of Green Ammonia or based on meter reading shall be entered in this worksheet (cell E64). Supporting calculations for the same to be appended."]
[null,"# RCO Compliance (Surplus / Deficit): Surplus is positive and Deficit is negative number"]
[]
[null,"Undertaking\nI/We undertake that the information supplied in this Renewable Consumption Obligations Compliance Declaration Form For Obligated Designated Consumers is accurate to the best of my knowledge and if any of the information supplied is found to be incorrect and such information results into loss to the Central Government or any of the authority under them or any other person affected, I/we undertake to indemnify such loss.\nI /We agree to extend necessary assistance in case of any enquiry to be made in the matter."]
[null,"For Designated Consumer",null,null,"For AEA / ACV Agency"]
[]
[]
[]
[null,"Signature and Seal of Energy Manager / Plant Head",null,null,"Signature and Seal of AEA / ACV"]

{"sheet":"FormA_CPP_OA_Q3","index":4,"n_rows":105,"n_cols":5,"rows_kept":105,"cut":false,"hidden":false,"merged":[[97,1,97,4],[99,1,99,4],[96,1,96,4],[94,1,94,4],[90,1,90,4],[89,1,89,4],[92,1,92,4],[95,1,95,4],[81,1,81,4],[83,1,83,4],[84,1,84,4],[87,1,87,4],[93,1,93,4],[91,1,91,4],[88,1,88,4],[82,1,82,4],[85,1,85,4],[86,1,86,4],[72,1,72,4],[1,1,1,4],[2,2,2,4],[3,2,3,4],[4,2,4,4],[5,2,5,4],[6,2,6,4],[10,1,10,4],[35,1,35,4],[7,2,7,4],[8,2,8,4],[9,2,9,4]]}
[]
[null,"Quarterly RCO Compliance Data reporting (Form A) - DCs with CPP & Open Access "]
[null,"Name of Obligated Designated Consumer",{"$f":"FormB_CPP_OA!C3","v":0}]
[null,"Address",{"$f":"FormB_CPP_OA!C4","v":0}]
[null,"Registration No. of Obligated Designated Consumer",{"$f":"FormB_CPP_OA!C5","v":0}]
[null,"Type of obligation(s) of Obligated Designated Consumer#",{"$f":"FormB_CPP_OA!C6","v":0}]
[null,"Target Year FY (__-__)",{"$f":"FormB_CPP_OA!C7","v":0}]
[null,"Quarter","Quarter 3 (01 October to 31 December)"]
[null,"Location - State",{"$f":"FormB_CPP_OA!C8","v":0}]
[null,"State Category",{"$f":"FormB_CPP_OA!C9","v":""}]
[null,"Part A – Gross Total Energy Consumption (Fossil based + Non-fossil based)"]
[null,"Particulars ","Nomenclature","Unit","Total Energy"]
[null,"Own Generation, Net after deducting APC*** (Sub-Total)","AT=A+A!-A**+B+T","MU",{"$f":"E14+E15-E16+E17+E18","v":0}]
[null,"Total Fossil based energy generation *","A","MU"]
[null,"Ex-Bus Energy generation from Fossil based Auxiliary Firing in WHR System !!","A!","MU",{"$f":"'Annexure-1'!H46","v":0}]
[null,"Fossil based energy from WHR **","A**","MU"]
[null,"Nuclear energy","B","MU"]
[null,"Total RE ","T","MU",{"$f":"E47","v":0}]
[null,"Energy Purchase (Sub-Total)","CT=C+E+D+A'","MU",{"$f":"SUM(E20:E23)","v":0}]
[null,"Fossil based energy (PPA/Bilateral)","C","MU"]
[null,"Nuclear energy (PPA/Bilateral)","E","MU"]
[null,"Purchase from Power exchanges (TAM/DAM/RTM)","D","MU"]
[null,"Total RE ","A'","MU",{"$f":"E53","v":0}]
[null,"Energy Sales (Sub-Total)","FT=F+H+G+H*+I'","MU",{"$f":"SUM(E25:E29)","v":0}]
[null,"Fossil based energy sales to Power Exchange ","F","MU"]
[null,"Nuclear energy sales to Power Exchange ","H","MU"]
[null,"Other sales of Fossil based energy (PPA/Bilateral)","G","MU"]
[null,"Other sales of Nuclear energy (PPA/Bilateral)","H*","MU"]
[null,"Total RE ","I'","MU",{"$f":"E57","v":0}]
[null,"Net Fossil Energy drawn from Storage (Sub-Total) !!!","IT=(I-J)*(1-ITL)","MU",{"$f":"(E31-E32)*(1-E33)","v":0}]
[null,"Total Energy drawn from Storage (ESS)","I","MU"]
[null,"Total Energy (Fossil + Nuclear) stored into Storage (ESS)","J","MU"]
[null,"Losses in Storage (ESS)","ITL","%"]
[null,"Net RE drawn from Storage ( Sub-Total)","Q'","MU",{"$f":"E61","v":0}]
[null,"Gross Total Energy Consumption on which Renewable Consumption Obligations is applicable ","K=AT+CT-FT+IT+Q'+W'+X'","MU",{"$f":"E13+E19-E24+E30+E34+E65+E66","v":0}]
[null,"Part B – Gross Non-fossil based Energy Consumption "]
[null,"Particulars","Nomenclature","Unit","Total Quantity"]
[null,"Green Hydrogen produced","L","Tons"]
[null,"Green Hydrogen purchased","M","Tons"]
[null,"Sale of Green Hydrogen","N","Tons"]
[null,"Green Hydrogen consumed","O=L+M-N","Tons",{"$f":"E38+E39-E40","v":0}]
[null,"Green Ammonia produced","P","Tons"]
[null,"Green Ammonia purchased","Q","Tons"]
[null,"Sale of Green Ammonia","R","Tons"]
[null,"Green Ammonia consumed","S=P+Q-R","Tons",{"$f":"E42+E43-E44","v":0}]
[null,"Particulars","Nomenclature","Unit","Total Energy"]
[null,"RE Own Generation ⴕ ⴕ (Sub-Total)","T=U+W+Er(ex-bus)","MU",{"$f":"E48+E49+E52","v":0}]
[null,"Wind, Hydro and Other Renewable Energy (1)","U","MU"]
[null,"Distributed Renewable Energy (DRE) (2)","W=X+Y","MU",{"$f":"E50+E51","v":0}]
[null,"DRE metered","X","MU"]
[null,"DRE unmetered (3)","Y","MU"]
[null,"Ex-bus electrical energy generated by combustion of renewable fuels ⴕ","Er(ex-bus)","MU",{"$f":"'Annexure-1'!H38","v":0}]
[null,"RE Purchase ⴕ ⴕ (Sub-Total)","A'=B'+D'+H'","MU",{"$f":"E54+E55+E56","v":0}]
[null,"Wind, Hydro and Other Renewable Energy (1)","B'","MU"]
[null,"Distributed Renewable Energy (DRE) (2)                                                                   DRE metered (5)","D'","MU"]
[null,"Green Power Market procurement (GTAM, GDAM)","H'","MU"]
[null,"RE Sales ⴕ ⴕ (Sub-Total)","I'=J'+L'+P'","MU",{"$f":"E58+E59+E60","v":0}]
[null,"Wind, Hydro and Other Renewable Energy (1)","J'","MU"]
[null,"Distributed Renewable Energy (DRE) (2)                                                                   DRE metered (6)","L'","MU"]
[null,"RE Sale to Green Power Market (GTAM, GDAM)","P'","MU"]
[null,"Net RE drawn from Storage (Sub-Total) !!!","Q'=(R'-S')*(1-QL)","MU",{"$f":"(E62-E63)*(1-E64)","v":0}]
[null,"Total Energy drawn from Storage (ESS)","R'","MU"]
[null,"Total RE Stored into Storage (ESS)","S'","MU"]
[null,"Losses in Storage (ESS)","QL","%"]
[null,"Energy Equivalent of GH2 Consumed ##","W'","MU",{"$f":"'Annexure-2'!F9","v":0}]
[null,"Energy Equivalent of Green Ammonia Consumed ##","X'","MU"]
[null,"Gross Non-fossil based Energy Consumption ","Y'=T+A'-I'+Q'+W'+X'","MU",{"$f":"E47+E53-E57+E61+E65+E66","v":0}]
[null,"Renewable Energy Certificates (RECs) ⴕⴕⴕ","T'=U'+V'","MU",{"$f":"E70+E72","v":0}]
[null,"Number of RECs Purchased",null,"No. of Certificates"]
[null,"REC Purchase","U'","MU",{"$f":"E69/1000","v":0}]
[null,"Number of RECs Self-Retained",null,"No. of Certificates"]
[null,"REC Self-retaintion","V'","MU",{"$f":"E71/1000","v":0}]
[null,"Part C – RENEWABLE CONSUMPTION OBLIGATIONS  Compliance "]
[null,"Particular","Nomenclature","Unit","Values"]
[null,"RCO (%) specified by MoP","Z'","%",{"$f":"FormB_CPP_OA!E36","v":0}]
[null,"MoP Renewable Consumption Obligation Target","A''=K*Z'","MU",{"$f":"E35*E75","v":0}]
[null,"Quarterly Compliance","D''=Y'+T'","MU",{"$f":"E67+E68","v":0}]
[null,"Quarterly Compliance (%)","B''=D''/K","%",{"$f":"IF(E35=0,0,E77/E35)","v":0}]
[null,"Surplus / Deficit #","C''=D''-A''","MU",{"$f":"E77-E76","v":0}]
[]
[null,"Legend","Data Entry Not Allowed","Data to be Entered by User","Calculated Data"]
[null,"Notes: "]
[null,"*** All Energy Generation should be reported as Net Generation after deduction of auxilliary power consumption in the respective power plant. This includes Total Fossil based generation, generation from WHR, as well as Nuclear and RE generation. AEA / ACV Agency to review the auxilliary power consumption records and confirm prior to endorsing the Form A and Form B. Details of deduction of APC to be appended as supporting documents."]
[null,"* This is the total fossil based energy generation including generation from WHR. "]
[null,"** This is all Non-RE based energy generated from WHR, which is exempted from RCO obligation. This is hence reported separately, and substracted from total fossil based energy generation."]
[null,"!! This value is calculated from the inputs provided in the relevant section of the Worksheet named \"Annexure-1\" and is only applicable in case of auxiliary firing of fossil based fuels in the waste heat recovery boiler (WHRB). Relevant values may be input in the fields provided for the same in \"Annexure-1\" if  auxiliary firing of fosil fuels is applicable."]
[null,"!!! All power stored into Storage (ESS) shall be metered or other wise established (e.g. based on purchase records) separately for fossil based including nuclear power, and separately for RE power. The power drawn from ESS for the quarter shall also be distributed in the same ratio of (Fossil + Nuclear) to RE, as the power stored into ESS for the quarter. All necessary details to establish net power drawn from ESS for (Fossil + Nuclear) and RE shall then be entered separately into the respective fields provided."]
[null,"ⴕ ⴕ Definition of RE Sources (Wind, Hydro, DRE and Others) shall be as per MoP Trajectory notification S.O. 4617(E) dtd. 20 October 2023 or as per latest amendments from time to time. Bifurcation among RE Sources (Wind, Hydro, DRE and Others) is not required for RCO compliance."]
[null,"ⴕ This value is calculated from the inputs provided in the Worksheet named \"Annexure-1\" and is only applicable in case of electricity generation by combustion / co-firing of Renewable Fuels. Do NOT enter any values in \"Annexure-1\" if combustion / co-firing of Renewable Fuels is not applicable."]
[null,"(1) This includes Wind, Hydro, and Other Renewable Energy components. i.e. It effectively includes all renewable energy other than DRE which is specified in Note 4  as per MoP Trajectory notification S.O. 4617(E) dtd. 20 October 2023 or as per latest amendments from time to time."]
[null,"(2) The distributed renewable energy (DRE) component must be sourced exclusively from renewable energy projects that are under 10 MW in capacity. This includes all types of solar installations, such as net metering, gross metering, virtual net metering, group net metering, behind-the-meter installations, and any other configurations approved by the Central Government.\n\nCompliance with distributed renewable energy requirements will generally be measured in terms of energy (kilowatt-hour units).\n\nIf the designated consumer cannot provide generation data for distributed renewable energy installations, the reported capacity will be converted into energy generation using a multiplier of 3.5 units per kilowatt per day (kWh/kW/day).\n\nPurchase or Sale of unmetered energy (DRE) is not the norm and is not encouraged, even under execptional circumstances. Accordingly, the provision for recording unmetered DRE is only made under the head of 'Own RE Generation' and not under the heads of 'RE Purchase' and 'RE Sales'."]
[null,"(3) The number of days in the respective quarter or year that the DRE installation has been in operation shall be certified by the obligated DC and/or the AEA / ACV Agency in case of unmetered DRE."]
[null,"(4) Please report the DRE generation based on meter reading at the generator meter. In case a direct meter reading of the total generated power from DRE source is not available, then provision for such metering should be made within the next six months. Provisionally, till the metering arrangement is put in place, energy generation may be reported as unmetered DRE generation using the multiplier mentioned above (5 kWh/kW/day)."]
[null,"(5) In case separate purchase records are available for DRE purchased, say through bilateral PPA, then the same may be recorded here. Else RE purcahsed may be entered under 'Wind, Hydro and Other RE'"]
[null,"(6) DRE injected to Grid will be treated and reported as RE Sales to Grid in case of DRE connected in 'Net Metering' and 'Gross Metering' configurations and its variants. In case of gross metering, entire DRE generation shall be deemed to be injected to Grid"]
[null,"ⴕ ⴕ ⴕ Make an entry here only for the RECs purchased or self-retained duirng the first quarter (Q1 - 01 April to 30 June) of the Target Year"]
[null,"## Energy equivalent of GH2 and Green Ammonia Consumed should be evaluated as per Green Energy Open Access Rules with latest amendments as applicable. Details for GH2 to be entered in worksheet named Annexure 2, whereas energy consumption for Green Amonia based on Energy equivalent of one tonne of Green Ammonia or based on meter reading shall be entered in this worksheet (cell E64). Supporting calculations for the same to be appended."]
[null,"# RCO Compliance (Surplus / Deficit): Surplus is positive and Deficit is negative number"]
[]
[null,"Undertaking\nI/We undertake that the information supplied in this Renewable Consumption Obligations Compliance Declaration Form For Obligated Designated Consumers is accurate to the best of my knowledge and if any of the information supplied is found to be incorrect and such information results into loss to the Central Government or any of the authority under them or any other person affected, I/we undertake to indemnify such loss.\nI /We agree to extend necessary assistance in case of any enquiry to be made in the matter."]
[null,"For Designated Consumer",null,null,"For AEA / ACV Agency"]
[]
[]
[]
[null,"Signature and Seal of Energy Manager / Plant Head",null,null,"Signature and Seal of AEA / ACV"]

{"sheet":"FormA_CPP_OA_Q4","index":5,"n_rows":105,"n_cols":5,"rows_kept":105,"cut":false,"hidden":false,"merged":[[97,1,97,4],[99,1,99,4],[96,1,96,4],[94,1,94,4],[90,1,90,4],[89,1,89,4],[92,1,92,4],[95,1,95,4],[81,1,81,4],[83,1,83,4],[84,1,84,4],[87,1,87,4],[93,1,93,4],[91,1,91,4],[82,1,82,4],[88,1,88,4],[85,1,85,4],[86,1,86,4],[72,1,72,4],[1,1,1,4],[2,2,2,4],[3,2,3,4],[4,2,4,4],[5,2,5,4],[6,2,6,4],[10,1,10,4],[35,1,35,4],[7,2,7,4],[8,2,8,4],[9,2,9,4]]}
[]
[null,"Quarterly RCO Compliance Data reporting (Form A) - DCs with CPP & Open Access "]
[null,"Name of Obligated Designated Consumer",{"$f":"FormB_CPP_OA!C3","v":0}]
[null,"Address",{"$f":"FormB_CPP_OA!C4","v":0}]
[null,"Registration No. of Obligated Designated Consumer",{"$f":"FormB_CPP_OA!C5","v":0}]
[null,"Type of obligation(s) of Obligated Designated Consumer#",{"$f":"FormB_CPP_OA!C6","v":0}]
[null,"Target Year FY (__-__)",{"$f":"FormB_CPP_OA!C7","v":0}]
[null,"Quarter","Quarter 4 (01 January to 31 March)"]
[null,"Location - State",{"$f":"FormB_CPP_OA!C8","v":0}]
[null,"State Category",{"$f":"FormB_CPP_OA!C9","v":""}]
[null,"Part A – Gross Total Energy Consumption (Fossil based + Non-fossil based)"]
[null,"Particulars ","Nomenclature","Unit","Total Energy"]
[null,"Own Generation, Net after deducting APC*** (Sub-Total)","AT=A+A!-A**+B+T","MU",{"$f":"E14+E15-E16+E17+E18","v":0}]
[null,"Total Fossil based energy generation *","A","MU"]
[null,"Ex-Bus Energy generation from Fossil based Auxiliary Firing in WHR System !!","A!","MU",{"$f":"'Annexure-1'!I46","v":0}]
[null,"Fossil based energy from WHR **","A**","MU"]
[null,"Nuclear energy","B","MU"]
[null,"Total RE ","T","MU",{"$f":"E47","v":0}]
[null,"Energy Purchase (Sub-Total)","CT=C+E+D+A'","MU",{"$f":"SUM(E20:E23)","v":0}]
[null,"Fossil based energy (PPA/Bilateral)","C","MU"]
[null,"Nuclear energy (PPA/Bilateral)","E","MU"]
[null,"Purchase from Power exchanges (TAM/DAM/RTM)","D","MU"]
[null,"Total RE ","A'","MU",{"$f":"E53","v":0}]
[null,"Energy Sales (Sub-Total)","FT=F+H+G+H*+I'","MU",{"$f":"SUM(E25:E29)","v":0}]
[null,"Fossil based energy sales to Power Exchange ","F","MU"]
[null,"Nuclear energy sales to Power Exchange ","H","MU"]
[null,"Other sales of Fossil based energy (PPA/Bilateral)","G","MU"]
[null,"Other sales of Nuclear energy (PPA/Bilateral)","H*","MU"]
[null,"Total RE ","I'","MU",{"$f":"E57","v":0}]
[null,"Net Fossil Energy drawn from Storage (Sub-Total) !!!","IT=(I-J)*(1-ITL)","MU",{"$f":"(E31-E32)*(1-E33)","v":0}]
[null,"Total Energy drawn from Storage (ESS)","I","MU"]
[null,"Total Energy (Fossil + Nuclear) stored into Storage (ESS)","J","MU"]
[null,"Losses in Storage (ESS)","ITL","%"]
[null,"Net RE drawn from Storage ( Sub-Total)","Q'","MU",{"$f":"E61","v":0}]
[null,"Gross Total Energy Consumption on which Renewable Consumption Obligations is applicable ","K=AT+CT-FT+IT+Q'+W'+X'","MU",{"$f":"E13+E19-E24+E30+E34+E65+E66","v":0}]
[null,"Part B – Gross Non-fossil based Energy Consumption "]
[null,"Particulars","Nomenclature","Unit","Total Quantity"]
[null,"Green Hydrogen produced","L","Tons"]
[null,"Green Hydrogen purchased","M","Tons"]
[null,"Sale of Green Hydrogen","N","Tons"]
[null,"Green Hydrogen consumed","O=L+M-N","Tons",{"$f":"E38+E39-E40","v":0}]
[null,"Green Ammonia produced","P","Tons"]
[null,"Green Ammonia purchased","Q","Tons"]
[null,"Sale of Green Ammonia","R","Tons"]
[null,"Green Ammonia consumed","S=P+Q-R","Tons",{"$f":"E42+E43-E44","v":0}]
[null,"Particulars","Nomenclature","Unit","Total Energy"]
[null,"RE Own Generation ⴕ ⴕ (Sub-Total)","T=U+W+Er(ex-bus)","MU",{"$f":"E48+E49+E52","v":0}]
[null,"Wind, Hydro and Other Renewable Energy (1)","U","MU"]
[null,"Distributed Renewable Energy (DRE) (2)","W=X+Y","MU",{"$f":"E50+E51","v":0}]
[null,"DRE metered","X","MU"]
[null,"DRE unmetered (3)","Y","MU"]
[null,"Ex-bus electrical energy generated by combustion of renewable fuels ⴕ","Er(ex-bus)","MU",{"$f":"'Annexure-1'!I38","v":0}]
[null,"RE Purchase ⴕ ⴕ (Sub-Total)","A'=B'+D'+H'","MU",{"$f":"E54+E55+E56","v":0}]
[null,"Wind, Hydro and Other Renewable Energy (1)","B'","MU"]
[null,"Distributed Renewable Energy (DRE) (2)                                                                   DRE metered (5)","D'","MU"]
[null,"Green Power Market procurement (GTAM, GDAM)","H'","MU"]
[null,"RE Sales ⴕ ⴕ (Sub-Total)","I'=J'+L'+P'","MU",{"$f":"E58+E59+E60","v":0}]
[null,"Wind, Hydro and Other Renewable Energy (1)","J'","MU"]
[null,"Distributed Renewable Energy (DRE) (2)                                                                   DRE metered (6)","L'","MU"]
[null,"RE Sale to Green Power Market (GTAM, GDAM)","P'","MU"]
[null,"Net RE drawn from Storage (Sub-Total) !!!","Q'=(R'-S')*(1-QL)","MU",{"$f":"(E62-E63)*(1-E64)","v":0}]
[null,"Total Energy drawn from Storage (ESS)","R'","MU"]
[null,"Total RE Stored into Storage (ESS)","S'","MU"]
[null,"Losses in Storage (ESS)","QL","%"]
[null,"Energy Equivalent of GH2 Consumed ##","W'","MU",{"$f":"'Annexure-2'!G9","v":0}]
[null,"Energy Equivalent of Green Ammonia Consumed ##","X'","MU"]
[null,"Gross Non-fossil based Energy Consumption ","Y'=T+A'-I'+Q'+W'+X'","MU",{"$f":"E47+E53-E57+E61+E65+E66","v":0}]
[null,"Renewable Energy Certificates (RECs) ⴕⴕⴕ","T'=U'+V'","MU",{"$f":"E70+E72","v":0}]
[null,"Number of RECs Purchased",null,"No. of Certificates"]
[null,"REC Purchase","U'","MU",{"$f":"E69/1000","v":0}]
[null,"Number of RECs Self-Retained",null,"No. of Certificates"]
[null,"REC Self-retaintion","V'","MU",{"$f":"E71/1000","v":0}]
[null,"Part C – RENEWABLE CONSUMPTION OBLIGATIONS  Compliance "]
[null,"Particular","Nomenclature","Unit","Values"]
[null,"RCO (%) specified by MoP","Z'","%",{"$f":"FormB_CPP_OA!E36","v":0}]
[null,"MoP Renewable Consumption Obligation Target","A''=K*Z'","MU",{"$f":"E35*E75","v":0}]
[null,"Quarterly Compliance","D''=Y'+T'","MU",{"$f":"E67+E68","v":0}]
[null,"Quarterly Compliance (%)","B''=D''/K","%",{"$f":"IF(E35=0,0,E77/E35)","v":0}]
[null,"Surplus / Deficit #","C''=D''-A''","MU",{"$f":"E77-E76","v":0}]
[]
[null,"Legend","Data Entry Not Allowed","Data to be Entered by User","Calculated Data"]
[null,"Notes: "]
[null,"*** All Energy Generation should be reported as Net Generation after deduction of auxilliary power consumption in the respective power plant. This includes Total Fossil based generation, generation from WHR, as well as Nuclear and RE generation. AEA / ACV Agency to review the auxilliary power consumption records and confirm prior to endorsing the Form A and Form B. Details of deduction of APC to be appended as supporting documents."]
[null,"* This is the total fossil based energy generation including generation from WHR. "]
[null,"** This is all Non-RE based energy generated from WHR, which is exempted from RCO obligation. This is hence reported separately, and substracted from total fossil based energy generation."]
[null,"!! This value is calculated from the inputs provided in the relevant section of the Worksheet named \"Annexure-1\" and is only applicable in case of auxiliary firing of fossil based fuels in the waste heat recovery boiler (WHRB). Relevant values may be input in the fields provided for the same in \"Annexure-1\" if  auxiliary firing of fosil fuels is applicable."]
[null,"!!! All power stored into Storage (ESS) shall be metered or other wise established (e.g. based on purchase records) separately for fossil based including nuclear power, and separately for RE power. The power drawn from ESS for the quarter shall also be distributed in the same ratio of (Fossil + Nuclear) to RE, as the power stored into ESS for the quarter. All necessary details to establish net power drawn from ESS for (Fossil + Nuclear) and RE shall then be entered separately into the respective fields provided."]
[null,"ⴕ ⴕ Definition of RE Sources (Wind, Hydro, DRE and Others) shall be as per MoP Trajectory notification S.O. 4617(E) dtd. 20 October 2023 or as per latest amendments from time to time. Bifurcation among RE Sources (Wind, Hydro, DRE and Others) is not required for RCO compliance."]
[null,"ⴕ This value is calculated from the inputs provided in the Worksheet named \"Annexure-1\" and is only applicable in case of electricity generation by combustion / co-firing of Renewable Fuels. Do NOT enter any values in \"Annexure-1\" if combustion / co-firing of Renewable Fuels is not applicable."]
[null,"(1) This includes Wind, Hydro, and Other Renewable Energy components. i.e. It effectively includes all renewable energy other than DRE which is specified in Note 4  as per MoP Trajectory notification S.O. 4617(E) dtd. 20 October 2023 or as per latest amendments from time to time."]
[null,"(2) The distributed renewable energy (DRE) component must be sourced exclusively from renewable energy projects that are under 10 MW in capacity. This includes all types of solar installations, such as net metering, gross metering, virtual net metering, group net metering, behind-the-meter installations, and any other configurations approved by the Central Government.\n\nCompliance with distributed renewable energy requirements will generally be measured in terms of energy (kilowatt-hour units).\n\nIf the designated consumer cannot provide generation data for distributed renewable energy installations, the reported capacity will be converted into energy generation using a multiplier of 3.5 units per kilowatt per day (kWh/kW/day).\n\nPurchase or Sale of unmetered energy (DRE) is not the norm and is not encouraged, even under execptional circumstances. Accordingly, the provision for recording unmetered DRE is only made under the head of 'Own RE Generation' and not under the heads of 'RE Purchase' and 'RE Sales'."]
[null,"(3) The number of days in the respective quarter or year that the DRE installation has been in operation shall be certified by the obligated DC and/or the AEA / ACV Agency in case of unmetered DRE."]
[null,"(4) Please report the DRE generation based on meter reading at the generator meter. In case a direct meter reading of the total generated power from DRE source is not available, then provision for such metering should be made within the next six months. Provisionally, till the metering arrangement is put in place, energy generation may be reported as unmetered DRE generation using the multiplier mentioned above (5 kWh/kW/day)."]
[null,"(5) In case separate purchase records are available for DRE purchased, say through bilateral PPA, then the same may be recorded here. Else RE purcahsed may be entered under 'Wind, Hydro and Other RE'"]
[null,"(6) DRE injected to Grid will be treated and reported as RE Sales to Grid in case of DRE connected in 'Net Metering' and 'Gross Metering' configurations and its variants. In case of gross metering, entire DRE generation shall be deemed to be injected to Grid"]
[null,"ⴕ ⴕ ⴕ Make an entry here only for the RECs purchased or self-retained duirng the first quarter (Q1 - 01 April to 30 June) of the Target Year"]
[null,"## Energy equivalent of GH2 and Green Ammonia Consumed should be evaluated as per Green Energy Open Access Rules with latest amendments as applicable. Details for GH2 to be entered in worksheet named Annexure 2, whereas energy consumption for Green Amonia based on Energy equivalent of one tonne of Green Ammonia or based on meter reading shall be entered in this worksheet (cell E64). Supporting calculations for the same to be appended."]
[null,"# RCO Compliance (Surplus / Deficit): Surplus is positive and Deficit is negative number"]
[]
[null,"Undertaking\nI/We undertake that the information supplied in this Renewable Consumption Obligations Compliance Declaration Form For Obligated Designated Consumers is accurate to the best of my knowledge and if any of the information supplied is found to be incorrect and such information results into loss to the Central Government or any of the authority under them or any other person affected, I/we undertake to indemnify such loss.\nI /We agree to extend necessary assistance in case of any enquiry to be made in the matter."]
[null,"For Designated Consumer",null,null,"For AEA / ACV Agency"]
[]
[]
[]
[null,"Signature and Seal of Energy Manager / Plant Head",null,null,"Signature and Seal of AEA / ACV"]

{"sheet":"Supporting Sheet","index":6,"n_rows":23,"n_cols":14,"rows_kept":23,"cut":false,"hidden":true,"merged":[[13,9,14,9],[7,9,8,9],[9,9,10,9],[11,9,12,9],[3,9,4,9],[5,9,6,9]]}
[]
[]
[null,null,"Source of RE",null,"Power Market","Mode of compliance","Type of Plant","Non- Fossil Energy","TYPE OF CONTRACT","Source","Voltage level","Nature of Load",null,"Type of obligation(s) of Obligated Designated Consumer"]
[null,null,"Solar PV and solar thermal power",null,"Power Exchange","RE Own Generation","On Grid","RE Own Generation","Long Term","Thermal","400KV","Base Load",null,"Distribution licensee (DISCOM)"]
[null,null,"Wind Energy",null,"Bilateral ","RE Purchase","Off Grid","RE Purchase","Medium Term",null,"132KV","Seasonal Load",null,"Open Access(OA)"]
[null,null,"All Hydro Power including Large Hydro Projects (LHPs), Pumped Storage Projects (PSPs) and Small Hydro Projects (SHPs).",null,"N/A","REC",null,"REC","Short Term","Wind","220KV","Diurnal Load",null,"Captive power plant(CPP)"]
[null,null,"Wind Energy",null,null,"Energy Equivalent of Green Hydrogen consumed (in SCM)",null,"Energy Equivalent of Green Hydrogen consumed (in SCM)",null,null,"66KV"]
[null,null,"All Hydro Power including Large Hydro Projects (LHPs), Pumped Storage Projects (PSPs) and Small Hydro Projects (SHPs).",null,null,"Energy Equivalent of Green Ammonia consumed (in Tons)",null,"Energy Equivalent of Green Ammonia consumed (in Tons)",null,"Nuclear","33KV"]
[null,null,"Non-fossil fuel (including Bagasse) based co-generation projects.",null,null,null,null,null,null,null,"11KV"]
[null,null,"Biomass Power based on Rankine cycle and combined cycle technologies. ",null,null,null,null,null,null,"Small hydro"]
[null,null,"Biomass Gasifier based power. "]
[null,null,"Biogas based power. ",null,null,null,null,null,null,"Solar"]
[null,null,"Waste to Energy"]
[null,null,"Geothermal Power ",null,null,null,null,null,null,"Thermal"]
[null,null,"Tidal Power"]
[null,null,"Other hybrid technologies including renewable-renewable or renewable component of renewable-conventional sources for which renewable technology is approved by MNRE."]
[null,null,"Purchase of green hydrogen or green ammonia for use as energy and feedstock."]
[null,null,"Any other source as may be recognized or approved by Central Government / MNRE from time to time"]
[]
[]
[]
[]
[null,null,"Base load, diurnal load, and seasonal load are all related to electricity demand, but they differ in the following ways: \nBase load\nThe minimum amount of electricity required over a period of time, typically at a steady rate. Base load power plants are designed to run continuously and provide a consistent amount of electricity to meet the minimum demand on the power grid. \nDiurnal load\nThe time-of-day power demand, which typically varies throughout the day. Electricity demand is usually highest during business hours and lowest late at night and early in the morning. \nSeasonal load\nThe demand for a product or service that varies throughout the year, with highs and lows at specific times."]

{"sheet":"Annexure-1","index":7,"n_rows":69,"n_cols":13,"rows_kept":69,"cut":false,"hidden":false,"merged":[[63,2,63,9],[58,2,58,9],[59,2,59,9],[55,2,55,9],[56,2,56,9],[57,2,57,9],[60,2,60,9],[61,2,61,9],[54,3,54,4],[2,2,2,9],[5,2,5,9],[35,2,35,9],[43,2,43,9],[19,2,19,9],[6,2,6,9],[54,5,54,7],[54,8,54,9]]}
[]
[]
[null,null,"Annexure – 1: Estimation of electricity generated from combustion of renewable sources, and from auxiliary firing of fossil fuel in WHR System"]
[]
[]
[null,null,"Step # 1: Estimation of electricity generated at Generator Terminal by combustion of Renewable Fuels [Er(GT)]"]
[null,null,"Case # 1: Estimation of renewable electrical energy generated from cofiring of multiple renewable fuels along with fossil fuels in the same boiler in CPP."]
[null,null,"Particulars ","Nomenclature","Unit","Quarter 1","Quarter 2","Quarter 3","Quarter 4","Annual",null,null,"Case 1 Schematic:"]
[null,null,"Electrical energy generated by other renewable sources at Generator terminal during the quarter","Er(G)1 = [((Qrsolid x Grsolid) + (Qrliq x Grliq) + (Qrgas x Grgas)) / ((Qf x Gf) + (Qrsolid x Grsolid) + (Qrliq x Grliq) + (Qrgas x Grgas))] x E(GT)1","MU",{"$f":"IF(((F17*F18)+(F11*F12)+(F13*F14)+(F15*F16))*F10=0,0,((F11*F12)+(F13*F14)+(F15*F16))/((F17*F18)+(F11*F12)+(F13*F14)+(F15*F16))*F10)","v":0},{"$f":"IF(((G17*G18)+(G11*G12)+(G13*G14)+(G15*G16))*G10=0,0,((G11*G12)+(G13*G14)+(G15*G16))/((G17*G18)+(G11*G12)+(G13*G14)+(G15*G16))*G10)","v":0},0,0,{"$f":"SUM(F9:I9)","v":0}]
[null,null,"Total electrical energy generated at Generator Terminal during the quarter ","E(GT)1","MU",null,null,null,null,{"$f":"SUM(F10:I10)","v":0}]
[null,null,"Quantity of other renewable sources (solid fuels) consumed during the quarter","Qrsolid"," kg",null,null,null,null,{"$f":"SUM(F11:I11)","v":0}]
[null,null,"Weighted average GCV of other renewable energy sources (solid fuels) during the quarter","Grsolid","kCal/kg"]
[null,null,"Quantity of other renewable sources (liquid fuels) consumed during the quarter","Qrliq"," kg",null,null,null,null,{"$f":"SUM(F13:I13)","v":0}]
[null,null,"Weighted average GCV of other renewable sources (liquid fuels) during the quarter","Grliq","kCal/kg"]
[null,null,"Quantity of other renewable sources (gaseous fuels) consumed during the quarter","Qrgas"," kg",null,null,null,null,{"$f":"SUM(F15:I15)","v":0}]
[null,null,"Weighted average GCV of other renewable sources (gaseous fuels) during the quarter","Grgas","kCal/kg"]
[null,null,"Quantity of coal or other fossil fuel burnt during the quarter","Qf"," kg",null,null,null,null,{"$f":"SUM(F17:I17)","v":0}]
[null,null,"Weighted average GCV of coal or other fossil fuel burnt during the quarter","Gf","kCal/kg"]
[]
[null,null,"Case # 2: Estimation of renewable electrical energy generated from cofiring of multiple renewable fuels (e.g., black liquor dry solids - BLDS) in separate boiler(s) and separate boiler(s) for fossil fuels and with these boilers feeding to a common turbine generator set for electricity generation"]
[null,null,"Particulars ","Nomenclature","Unit","Quarter 1","Quarter 2","Quarter 3","Quarter 4","Annual",null,null,"Case 2 Schematic:"]
[null,null,"Electrical energy generated by other renewable sources at Generator terminal during the quarter","Er(G)2 = [((Qrsolid x Hrsolid) + (Qrliq x Hrliq) + (Qrgas x Hrgas)) / ((Qf x Hf) + (Qrsolid x Hrsolid) + (Qrliq x Hrliq) + (Qrgas x Hrgas))] x E(GT)2","MU",{"$f":"IF(((F30*F31)+(F24*F25)+(F26*F27)+(F28*F29))*F23=0,0,((F24*F25)+(F26*F27)+(F28*F29))/((F30*F31)+(F24*F25)+(F26*F27)+(F28*F29))*F23)","v":0},{"$f":"IF(((G30*G31)+(G24*G25)+(G26*G27)+(G28*G29))*G23=0,0,((G24*G25)+(G26*G27)+(G28*G29))/((G30*G31)+(G24*G25)+(G26*G27)+(G28*G29))*G23)","v":0},0,0,{"$f":"SUM(F22:I22)","v":0}]
[null,null,"Total electrical energy generated at Generator Terminal during the quarter ","E(GT)2","MU",null,null,null,null,{"$f":"SUM(F23:I23)","v":0}]
[null,null,"Quantity of steam generated from other renewable sources (solid fuels) consumed during quarter","Qrsolid"," kg",null,null,null,null,{"$f":"SUM(F24:I24)","v":0}]
[null,null,"Weighted average enthalpy of steam generated from other renewable sources (solid fuels) consumed during quarter","Hrsolid","kCal/kg"]
[null,null,"Quantity of steam generated from other renewable sources (liquid fuels) consumed during the quarter","Qrliq"," kg",null,null,null,null,{"$f":"SUM(F26:I26)","v":0}]
[null,null,"Weighted average enthalpy of steam generated from other renewable sources (liquid fuels) consumed during quarter","Hrliq","kCal/kg"]
[null,null,"Quantity of steam generated from other renewable sources (gaseous fules) consumed during the quarter","Qrgas"," kg",null,null,null,null,0]
[null,null,"Weighted average enthalpy of steam generated from other renewable sources (gaseous fuels) consumed during quarter","Hrgas","kCal/kg"]
[null,null,"Quantity of steam generated from coal or other fossil fuel burnt during the quarter","Qf"," kg",null,null,null,null,0]
[null,null,"Weighted average enthalpy of steam generated from coal or other fossil fuel burnt during the quarter","Hf","kCal/kg"]
[]
[null,null,"Total Electrical energy generated by renewable sources at Generator terminal during the quarter","Er(G) = Er(G)1 + Er(G)2","MU",{"$f":"F10+F23","v":0},{"$f":"G10+G23","v":0},{"$f":"H10+H23","v":0},{"$f":"I10+I23","v":0},{"$f":"SUM(F33:I33)","v":0}]
[null,null,"Total Electrical energy generated by renewable sources at Generator terminal during the quarter","Er(G) = Er(G)1 + Er(G)2","MU",{"$f":"F9+F22","v":0},{"$f":"G9+G22","v":0},{"$f":"H9+H22","v":0},{"$f":"I9+I22","v":0},{"$f":"SUM(F34:I34)","v":0}]
[]
[null,null,"Step # 2: Estimation of the ex-bus electrical energy generated by combustion of renewable fuels [Er (ex-bus)]"]
[null,null,"Particulars ","Nomenclature","Unit","Quarter 1","Quarter 2","Quarter 3","Quarter 4","Annual"]
[null,null,"Electrical energy generated by bio-mass (or other renewable sources) ex-bus during the quarter","Er (ex-bus) = Er(G) {1- [(E(GT)- E(SO))/ E(GT)]}","MU",{"$f":"IF(F39=0,0,F40*(1-((F39-F41)/F39)))","v":0},{"$f":"IF(G39=0,0,G40*(1-((G39-G41)/G39)))","v":0},0,0,{"$f":"SUM(F38:I38)","v":0}]
[null,null,"Total electrical energy generated at Generator Terminal during the quarter ","E(GT) = E(GT)1 + E(GT)2","MU",{"$f":"F33","v":0},0,0,0,{"$f":"SUM(F39:I39)","v":0}]
[null,null,"Total Electrical energy generated by renewable sources at Generator terminal during the quarter","Er(G) = Er(G)1 + Er(G)2","MU",0,0,0,0,{"$f":"SUM(F40:I40)","v":0}]
[null,null,"Total Energy Sent Out (ex-bus) during the quarter","E(SO)","MU",null,null,null,null,{"$f":"SUM(F41:I41)","v":0}]
[]
[null,null,null,null,null,null,null,null,null,null,null,null,"Schematic: Electricity Generation from WHR System including Auxiliary Firing of Fossil Fuel in WHR Boiler"]
[null,null,"Estimation of fossil based electrical energy generated through Waste Heat Recovery System from auxiliary firing of fossil based fuels in Industrial Process"]
[null,null,"Particulars ","Nomenclature","Unit","Quarter 1","Quarter 2","Quarter 3","Quarter 4","Annual"]
[null,null,"Ex-bus electrical energy generated by auxiliary firing of fossil fuel during the quarter","Efaux(ex-bus) = Ef(GT)aux x {1- [(E(GT)WHR - E(SO)WHR)/ E(GT)WHR]}","MU",{"$f":"IF(F48=0,0,F47*(1-(F48-F53)/F48))","v":0},{"$f":"IF(G48=0,0,G47*(1-(G48-G53)/G48))","v":0},{"$f":"IF(H48=0,0,H47*(1-(H48-H53)/H48))","v":0},{"$f":"IF(I48=0,0,I47*(1-(I48-I53)/I48))","v":0},{"$f":"SUM(F46:I46)","v":0}]
[null,null,"Electrical energy generated by auxiliary firing of fossil fuel at Generator terminal during the quarter","Ef(GT)aux = [(Qfaux x Gfaux) / ((Qfaux x Gfaux) + Ip + Up)] x E(GT)WHR","MU",{"$f":"IF(F48*(F49+F50)*(F51+F52)=0,0,((F51*F52)/(F49+F50+(F51*F52)))*F48)","v":0},{"$f":"IF(G48*(G49+G50)*(G51+G52)=0,0,((G51*G52)/(G49+G50+(G51*G52)))*G48)","v":0},{"$f":"IF(H48*(H49+H50)*(H51+H52)=0,0,((H51*H52)/(H49+H50+(H51*H52)))*H48)","v":0},{"$f":"IF(I48*(I49+I50)*(I51+I52)=0,0,((I51*I52)/(I49+I50+(I51*I52)))*I48)","v":0},{"$f":"SUM(F47:I47)","v":0}]
[null,null,"Total electrical energy generated at Generator Terminal from the WHR system during the quarter ","E(GT)WHR","MU",null,null,null,null,{"$f":"SUM(F48:I48)","v":0}]
[null,null,"Quantity of heat generated from process and transferred as flue gas to the WHR system during the quarter","Ip","kCal",null,null,null,null,{"$f":"SUM(F49:I49)","v":0}]
[null,null,"Quantity of heat generated from process i.e., from exothermic reaction other than combustion of fossil fuels during the quarter","Up","kCal",null,null,null,null,0]
[null,null,"Quantity of coal or other fossil fuel fired as auxiliary fuel in the WHR system during the quarter","Qfaux"," kg",null,null,null,null,{"$f":"SUM(F51:I51)","v":0}]
[null,null,"Weighted average GCV of coal or other fossil fuel fired as auxiliary fuel in the WHR system during the quarter","Gfaux","kCal/kg"]
[null,null,"Total Energy Sent Out (ex-bus) from WHR system during the quarter","E(SO)WHR","MU",null,null,null,null,{"$f":"SUM(F53:I53)","v":0}]
[]
[null,null,"Legend","Data Entry Not Allowed",null,"Data to be Entered by User",null,null,"Calculated Data"]
[null,null,"Notes for Co-firing of Renewable Fuels:"]
[null,null,"1) Enter only values pertaining to Case 1, or Case 2 as applicable. Leave the remaining case blank where not applicable."]
[null,null,"2) In case of co-firing of multiple renewable fuels, please report values for Solid Fuels, Liquid Fuels and Gaseous Fuels separately, as applicable. Please aggregate and report values together for all solid renewable fuels. Likewise, where applicable, please aggregate and report values together by Lliquid fuels and by Gaseous Fuels separately."]
[null,null,"3) For Case 1, quarterly aggregation of solid fuel quantities (i.e. Qrsolid) to be done by addition, and quarterly aggregation of GCVs (i.e. Grsolid) to be done by calculating weighted average GCV with weightage taken as the fuel quantity. Same will be the case for Liquid and Gaseous fuels."]
[null,null,"4) For Case 2, aggregation of steam generated in each boiler is to be considered separately, and aggregation of GCVs to be done by calculating weighted average GCV with weightage taken as the fuel quantity."]
[null,null,"Notes for Auxiliary Firing of Fossil Fuels in WHR System:"]
[null,null,"1) Values of 'Ip' and 'Up' may be estimated based on mass, specific heat, and temperature records of the respective flue gas streams. Alternatively 'Up' may be estimated based on the exothermic chemical reaction. and corresponding quarterly input quantities. DC and AEA to provide the full details of such estimation in the report submitted along with Form A and Form B."]
[]
[null,null,"Undertaking\nI/We undertake that the information supplied in this Renewable Consumption Obligations Compliance Declaration Form For Obligated Designated Consumers is accurate to the best of my knowledge and if any of the information supplied is found to be incorrect and such information results into loss to the Central Government or any of the authority under them or any other person affected, I/we undertake to indemnify such loss.\nI /We agree to extend necessary assistance in case of any enquiry to be made in the matter."]
[null,null,"For Obligated DC",null,null,null,null,null,null,"For AEA / ACV Agency"]
[]
[]
[]
[null,null,"Signature and Seal of Energy Manager / Plant Head",null,null,null,null,null,null,"Signature and Seal of AEA / ACV"]

{"sheet":"Annexure-2","index":8,"n_rows":26,"n_cols":19,"rows_kept":26,"cut":false,"hidden":false,"merged":[[1,1,1,8],[12,1,12,8],[14,3,14,7],[3,1,5,2],[11,10,11,18],[5,3,5,7],[4,3,4,7],[3,3,3,7],[7,1,8,1],[7,2,8,2],[7,8,8,8],[11,1,11,8],[14,13,14,17]]}
[]
[null,"Annexure – 2: Estimation of electricity required for production of Green Hydrogen"]
[]
[null,"Legend",null,"Data to be Entered by User"]
[null,null,null,"Data Entry Not Allowed"]
[null,null,null,"Calculated Data"]
[]
[null,"GrandTotal - Energy Equivalent of GH2 consumed (Case # 1 + Case # 2)","MU","Quarter 1","Quarter 2","Quarter 3","Quarter 4","Annual","Note: The Quarter wise Energy Equivalent of GH2 consumed is automatically reflected in the Form A of respective quarter."]
[null,null,null,{"$f":"D16+N16","v":0},{"$f":"E16+O16","v":0},0,0,{"$f":"SUM(D9:G9)","v":0}]
[]
[]
[null,"Case # 1: Electrolysis of Water - Estimation of electricity consumption for production of Green Hydrogen",null,null,null,null,null,null,null,null,"Case # 2: Gasification of Biomass - Estimation of energy consumption for production of Green Hydrogen"]
[null,"To calculate the electricity consumption for producing 1 kg of green hydrogen through the electrolysis process, the following formula shall be used:\nElectricity Consumption per kg of H2 (kWh) = Theoretical Energy Required (39.4 kWh/kg) / Efficiency of Electrolyzer"]
[null,"Particulars ","Unit","Quarter 1","Quarter 2","Quarter 3","Quarter 4","Annual","Remarks",null,"Particulars ","Nomenclature","Unit","Quarter 1","Quarter 2","Quarter 3","Quarter 4","Annual","Remarks"]
[null,"Theoretical Energy Required per kg of H2 (kWh/kg): ","kWh/kg (theoretical)",39.4,null,null,null,null,null,null,"1 kilowatthour (kWh) = 3.6 megajoules(MJ)","-","kWh/MJ ",{"$f":"1/3.6","v":0.27777777777777779}]
[null,"SubTotal of Electrolyzers - Energy Equivalent of GH2 produced / purchased","MU",{"$f":"SUM(_xlfn._xlws.FILTER(Electrolyzers[Quarter 1],Electrolyzers[Particulars]=\"Energy Equivalent of GH2 consumed\",0))","v":0},{"$f":"SUM(_xlfn._xlws.FILTER(Electrolyzers[Quarter 2],Electrolyzers[Particulars]=\"Energy Equivalent of GH2 consumed\",0))","v":0},{"$f":"SUM(_xlfn._xlws.FILTER(Electrolyzers[Quarter 3],Electrolyzers[Particulars]=\"Energy Equivalent of GH2 consumed\",0))","v":0},{"$f":"SUM(_xlfn._xlws.FILTER(Electrolyzers[Quarter 4],Electrolyzers[Particulars]=\"Energy Equivalent of GH2 consumed\",0))","v":0},{"$f":"SUM(_xlfn._xlws.FILTER(Electrolyzers[Annual],Electrolyzers[Particulars]=\"Energy Equivalent of GH2 consumed\",0))","v":0},"-",null,"SubTotal of Biomass Gassification - Energy Equivalent of GH2 produced / purchased",null,"MU",{"$f":"SUM(_xlfn._xlws.FILTER(Gassification[Quarter 1],Gassification[[Particulars ]]=\"Energy Equivalent of GH2 consumed\",0))","v":0},{"$f":"SUM(_xlfn._xlws.FILTER(Gassification[Quarter 2],Gassification[Nomenclature]=\"Energy Equivalent of GH2 consumed\",0))","v":0},{"$f":"SUM(_xlfn._xlws.FILTER(Gassification[Quarter 3],Gassification[Unit]=\"Energy Equivalent of GH2 consumed\",0))","v":0},{"$f":"SUM(_xlfn._xlws.FILTER(Gassification[Quarter 4],Gassification[Quarter 1]=\"Energy Equivalent of GH2 consumed\",0))","v":0},{"$f":"SUM(_xlfn._xlws.FILTER(Gassification[Annual],Gassification[Quarter 2]=\"Energy Equivalent of GH2 consumed\",0))","v":0},"-"]
[]
[null,"Particulars","Unit","Quarter 1","Quarter 2","Quarter 3","Quarter 4","Annual","Remarks",null,"Particulars ","Nomenclature","Unit","Quarter 1","Quarter 2","Quarter 3","Quarter 4","Annual","Remarks"]
[null,"Electrolyzer 1:",null,null,null,null,null,null,"To add rows for additional Electrolysers at the end of this table, or to remove rows for additional Electrolysers, please use the respective command buttons provided above",null,"Biomass_Gassification 1:",null,null,null,null,null,null,null,"To add rows for additional Biomass Gassifiers at the end of this table, or to remove rows for Biomass Gassifiers, please use the respective command buttons provided above"]
[null,"Electrolyzer Efficiency:","%",null,null,null,null,null,"The efficiency of the electrolyzer typically ranges from 60% to 80%. ",null,"Energy Required per kg of H2","E = C / (Y * η)"," MJ/kg H₂",{"$f":"IF(N22*N23=0,0,N21/(N22*N23))","v":0},{"$f":"IF(O22*O23=0,0,O21/(O22*O23))","v":0},0,0,{"$f":"SUM(Gassification[[#This Row],[Quarter 1]:[Quarter 4]])","v":0}]
[null,"Electricity Consumption per kg of H2 (kWh)","kWh/kg (actual)",{"$f":"IF(D20=0,0,$D$15/D20)","v":0},{"$f":"IF(E20=0,0,$D$15/E20)","v":0},0,0,null,null,null,"Energy content of biomass ","C","MJ/kg",null,null,null,null,{"$f":"SUM(Gassification[[#This Row],[Quarter 1]:[Quarter 4]])","v":0}]
[null,"Green Hydrogen produced / purchased","Tons",null,null,null,null,{"$f":"SUM(Electrolyzers[[#This Row],[Quarter 1]:[Quarter 4]])","v":0},"-",null,"Hydrogen yield ","Y","kg H₂/kg biomass"]
[null,"Green Hydrogen sold","Tons",null,null,null,null,{"$f":"SUM(Electrolyzers[[#This Row],[Quarter 1]:[Quarter 4]])","v":0},"Only the quantum of GH2 sold externally and not consumed in the facility should be mentioned here",null,"Gasification Efficiency ","η","%"]
[null,"Energy Equivalent of GH2 consumed","MU",{"$f":"D21*(D22-D23)/1000","v":0},0,0,0,{"$f":"SUM(Electrolyzers[[#This Row],[Quarter 1]:[Quarter 4]])","v":0},"-",null,"Green Hydrogen produced / purchased","PGH","Tons",null,null,null,null,{"$f":"SUM(Gassification[[#This Row],[Quarter 1]:[Quarter 4]])","v":0}]
[null,null,null,null,null,null,null,null,null,null,"Green Hydrogen sold","SGH","Tons",null,null,null,null,{"$f":"SUM(Gassification[[#This Row],[Quarter 1]:[Quarter 4]])","v":0},"Only the quantum of GH2 sold externally and not consumed in the facility should be mentioned here"]
[null,null,null,null,null,null,null,null,null,null,"Energy Equivalent of GH2 Consumed","E*(PGH-SGH)","MU",{"$f":"N20*(N24-N25)*$N$15/1000","v":0},{"$f":"O20*(O24-O25)*$N$15/1000","v":0},0,0,{"$f":"SUM(Gassification[[#This Row],[Quarter 1]:[Quarter 4]])","v":0}]

{"sheet":"StateUTs","index":9,"n_rows":37,"n_cols":7,"rows_kept":37,"cut":false,"hidden":true,"merged":[]}
["Sl No.","State/ UT","State category"]
[35,"Andaman and Nicobar Island","Normal",null,null,"Target Quarter","Type of obligation(s) of Obligated Designated Consumer#"]
[1,"Andhra Pradesh","Normal",null,null,"Q1","Discom"]
[2,"Arunachal Pradesh","NER",null,null,"Q2","Captive Power Plant(CPP)"]
[3,"Assam","NER",null,null,"Q3","Open Access"]
[4,"Bihar","Normal",null,null,"Q4"]
[32,"Chandigarh","Normal"]
[5,"Chhattisgarh","Normal"]
[33,"Daman & Diu and Dadra & Nagar Haveli","Normal"]
[6,"Delhi","Normal"]
[7,"Goa","Normal"]
[8,"Gujarat","Normal"]
[9,"Haryana","Normal"]
[10,"Himachal Pradesh","Hilly"]
[11,"Jammu & Kashmir","Hilly"]
[13,"Jharkhand","Normal"]
[14,"Karnataka","Normal"]
[15,"Kerala","Normal"]
[12,"Ladakh","Hilly"]
[36,"Lakshadweep","Normal"]
[16,"Madhya Pradesh","Normal"]
[17,"Maharashtra","Normal"]
[18,"Manipur","NER"]
[20,"Meghalaya","NER"]
[19,"Mizoram","NER"]
[21,"Nagaland","NER"]
[22,"Odisha","Normal"]
[34,"Puducherry","Normal"]
[23,"Punjab","Normal"]
[24,"Rajasthan","Normal"]
[25,"Sikkim","NER"]
[26,"Tamil Nadu","Normal"]
[27,"Telangana","Normal"]
[28,"Tripura","NER"]
[29,"Uttar Pradesh","Normal"]
[30,"Uttarakhand","Hilly"]
[31,"West Bengal","Normal"]

{"sheet":"Targets","index":10,"n_rows":20,"n_cols":8,"rows_kept":20,"cut":false,"hidden":true,"merged":[]}
[null,null,null,"Wind RE","Hydro RE","Distributed RE","Other RE","Total"]
[null,"State category","FY","Wind renewable energy","Hydro renewable energy","Distributed renewable energy*","Other renewable energy","Total renewable energy"]
[null,"Normal","2024-25",6.7000000000000002E-3,3.8E-3,1.4999999999999999E-2,0.27350000000000002,0.29909999999999998]
[null,"Normal","2025-26",1.4500000000000001E-2,1.2200000000000001E-2,2.1000000000000001E-2,0.28239999999999998,0.3301]
[null,"Normal","2026-27",1.9699999999999999E-2,1.34E-2,2.7E-2,0.2994,0.35949999999999999]
[null,"Normal","2027-28",2.4500000000000001E-2,1.4200000000000001E-2,3.3000000000000002E-2,0.31640000000000001,0.3881]
[null,"Normal","2028-29",2.9499999999999998E-2,1.4200000000000001E-2,3.9E-2,0.33100000000000002,0.41360000000000002]
[null,"Normal","2029-30",3.4799999999999998E-2,1.3299999999999999E-2,4.4999999999999998E-2,0.3402,0.43330000000000002]
[null,"Hilly","2024-25",6.7000000000000002E-3,3.8E-3,7.4999999999999997E-3,0.28100000000000003,0.29909999999999998]
[null,"Hilly","2025-26",1.4500000000000001E-2,1.2200000000000001E-2,1.0500000000000001E-2,0.29289999999999999,0.3301]
[null,"Hilly","2026-27",1.9699999999999999E-2,1.34E-2,1.35E-2,0.31290000000000001,0.35949999999999999]
[null,"Hilly","2027-28",2.4500000000000001E-2,1.4200000000000001E-2,1.6500000000000001E-2,0.33290000000000003,0.3881]
[null,"Hilly","2028-29",2.9499999999999998E-2,1.4200000000000001E-2,1.95E-2,0.35050000000000003,0.41360000000000002]
[null,"Hilly","2029-30",3.4799999999999998E-2,1.3299999999999999E-2,2.2499999999999999E-2,0.36270000000000002,0.43330000000000002]
[null,"NER","2024-25",6.7000000000000002E-3,3.8E-3,7.4999999999999997E-3,0.28100000000000003,0.29909999999999998]
[null,"NER","2025-26",1.4500000000000001E-2,1.2200000000000001E-2,1.0500000000000001E-2,0.29289999999999999,0.3301]
[null,"NER","2026-27",1.9699999999999999E-2,1.34E-2,1.35E-2,0.31290000000000001,0.35949999999999999]
[null,"NER","2027-28",2.4500000000000001E-2,1.4200000000000001E-2,1.6500000000000001E-2,0.33290000000000003,0.3881]
[null,"NER","2028-29",2.9499999999999998E-2,1.4200000000000001E-2,1.95E-2,0.35050000000000003,0.41360000000000002]
[null,"NER","2029-30",3.4799999999999998E-2,1.3299999999999999E-2,2.2499999999999999E-2,0.36270000000000002,0.43330000000000002]